[Event "Moscow Open RSSU Cup 2020"]
[Site "Moscow"]
[Date "2020.02.02"]
[Round "9.8"]
[White "Korchmar, Vasiliy"]
[Black "Kunin, Vitaly"]
[Result "*"]
[ECO "A40"]
[WhiteElo "2446"]
[BlackElo "2533"]
[Annotator "RC"]
[PlyCount "102"]
[EventDate "2020.01.25"]
[EventType "swiss"]
[EventCountry "RUS"]
[SourceTitle "playchess.com"]
[Source "ChessBase"]
[SourceQuality "1"]
[TimeControl "40/5400+30:1800+30"]

1. d4 {[%emt 0:00:00]} e6 {[%emt 0:00:39]} 2. c4 {[%emt 0:00:00]} b6 {[%emt 1:30:21]} 3. e4 {[%emt 0:00:58]} Bb7 {[%emt 0:00:47]} 4. Bd3 {[%emt 0:00:39]} Bb4+ {[%emt 0:01:08]} 5. Kf1 {[%emt 1:30:53]} Be7 {[%emt 0:00:24]} 6. Nc3 {[%emt 0:02:14]} d6 {[%emt 0:00:44]} 7. Nf3 {[%emt 0:00:26]} Nd7 {[%emt 0:00:21]} 8. g3 {[%emt 0:02:26]} Bf6 {[%emt 0:01:14]} 9. Kg2 {[%emt 0:02:12]} Ne7 {[%emt 0:00:28]} 10. h4 {[%emt 0:03:33]} O-O {[%emt 0:08:43]} 11. h5 {[%emt 0:06:26]} c5 {[%emt 0:03:59]} 12. d5 {[%emt 0:06:08]} Ne5 {[%emt 0:01:01]} 13. Nxe5 {[%emt 0:00:48]} Bxe5 {[%emt 0:00:20]} 14. h6 {[%emt 0:02:24]} g6 {[%emt 0:00:22]} 15. Qc2 {[%emt 0:04:05]} a6 {[%emt 0:02:49]} 16. a4 {[%emt 0:04:33]} b5 {[%emt 0:01:34]} 17. dxe6 {[%emt 0:14:31]} fxe6 {[%emt 1:13:28]} 18. axb5 {[%emt 0:00:09]} Nf5 {[%emt 0:05:43]} 19. bxa6 {[%emt 0:03:36]} Nd4 {[%emt 0:05:22]} 20. Qd1 {[%emt 0:00:03]} Bxa6 {[%emt 0:03:32]} 21. Qg4 {[%emt 0:06:56]} Qb6 {[%emt 0:04:26]} 22. Ra2 {[%emt 0:11:45]} Rae8 {[%emt 0:55:51]} 23. Be3 {[%emt 0:02:46]} Bb7 {[%emt 0:02:31]} 24. Rha1 {[%emt 0:00:13]} Nc6 {[%emt 0:03:10]} 25. Bb1 {[%emt 0:10:02]} Bd4 {[%emt 0:04:31]} 26. Qe2 {[%emt 0:01:52]} Ne5 {[%emt 0:14:30]} 27. Ra5 {[%emt 0:04:20]} Bxe3 {[%emt 0:01:41]} 28. fxe3 {[%emt 0:00:04]} Rf7 {[%emt 0:02:23]} 29. Nd1 {[%emt 0:06:33]} Ref8 {[%emt 0:00:31]} 30. b4 {[%emt 0:02:30]} cxb4 {[%emt 0:03:10]} 31. Rb5 {[%emt 0:00:16]} Qd8 {[%emt 0:00:23]} 32. Rxb4 {[%emt 0:01:33]} Qg5 {[%emt 0:00:43]} 33. Ra5 {[%emt 0:00:25]} Qxh6 {[%emt 0:02:08]} 34. Rxe5 {[%emt 0:00:09]} dxe5 {[%emt 0:00:14]} 35. Qg4 {[%emt 0:00:06]} g5 {[%emt 0:05:15]} 36. Bd3 {[%emt 0:00:15]} Qg6 {[%emt 0:14:51]} 37. Rb6 {[%emt 0:00:04]} Re8 {[%emt 0:01:13]} 38. Nc3 {[%emt 0:00:38]} h5 {[%emt 0:00:23]} 39. Qe2 {[%emt 0:02:43]} Ref8 {[%emt 0:01:44]} 40. c5 {[%emt 0:00:02]} Bc8 {[%emt 0:01:12]} 41. Nb5 {[%emt 0:30:42]} h4 {[%emt 0:31:16]} 42. Nd6 {[%emt 0:00:57]} Rf3 {[%emt 0:07:08]} 43. Nf5 {[%emt 0:00:35]} Rxg3+ {[%emt 0:01:37]} 44. Nxg3 {[%emt 0:00:08]} hxg3 {[%emt 0:00:06]} 45. Kxg3 {[%emt 0:00:40]} Qh6 {[%emt 0:01:20]} 46. Qg4 {[%emt 0:00:01]} Rd8 {[%emt 0:00:38]} 47. Bc4 {[%emt 0:01:53]} Kf7 {[%emt 0:01:13]} 48. Rc6 {[%emt 0:00:52]} Rh8 {[%emt 0:00:55]} 49. Rc7+ {[%emt 0:00:28]} Kg6 {[%emt 0:00:11]} 50. Kf2 {[%emt 0:00:16]} Qh1 {[%emt 0:00:52]} 51. Bf1 {[%emt 0:00:11]} Rf8+ {[%emt 0:00:09]} *